bitfinex-derivatives/quotes_BTCF0:USTF0_20241117
["timestamp","ask_amount","ask_price","bid_price","bid_amount"]
[1731835672513,0.21843152,91274.0,91273.0,0.08569607]
[1731835672908,0.21843152,91274.0,91273.0,0.09254879]
[1731835673112,0.21843152,91274.0,91273.0,0.08569607]
[1731835673314,0.054777,91274.0,91273.0,0.09254881]
[1731835673812,0.2188133,91274.0,91273.0,0.09254881]
[1731835674410,0.054777,91274.0,91273.0,0.09254881]
[1731835674719,0.10806876,91274.0,91273.0,0.09254881]
[1731835675420,0.054777,91274.0,91273.0,0.09254881]
[1731835676713,0.054777,91274.0,91273.0,0.28659036]
[1731835677320,0.054777,91274.0,91273.0,0.09254881]
[1731835679620,0.054777,91274.0,91273.0,0.35105281]
[1731835680125,0.054777,91274.0,91273.0,0.09254881]
[1731835680422,0.18604406,91274.0,91273.0,0.09254881]
[1731835680727,0.054777,91274.0,91273.0,0.09254881]
[1731835681728,0.054777,91274.0,91273.0,1.85105281]
[1731835681924,0.054777,91274.0,91273.0,0.21106005]
[1731835682228,0.4367539,91274.0,91264.0,0.19521027]
[1731835682528,0.054786,91259.0,91258.0,0.19521027]
[1731835682735,0.054786,91259.0,91258.0,0.00685418]
[1731835683023,0.16433953,91262.0,91255.0,0.19521027]
[1731835683323,0.13140437,91257.0,91256.0,0.00685453]
[1731835683528,0.13140437,91257.0,91256.0,0.00010259]
[1731835683529,0.18619137,91257.0,91256.0,0.00010259]
[1731835683729,0.054787,91257.0,91256.0,0.00010259]
[1731835684220,0.18619137,91257.0,91256.0,0.00010259]
[1731835684422,0.054787,91257.0,91256.0,0.00010259]
[1731835689332,0.085487,91257.0,91256.0,0.00010259]
[1731835690229,0.13879484,91257.0,91256.0,0.00010259]
[1731835694639,0.13879484,91257.0,91256.0,0.0090136]
[1731835696334,0.13879484,91257.0,91256.0,0.0035299]
[1731835697137,0.085487,91257.0,91256.0,0.0035299]
[1731835697432,0.054781,91267.0,91263.0,0.054783]
[1731835697623,0.054783,91265.0,91264.0,0.00891075]
[1731835697820,0.054783,91265.0,91264.0,1.50891075]
[1731835698536,0.054783,91265.0,91264.0,0.00891075]
[1731835701739,0.054783,91265.0,91264.0,0.00342692]
[1731835702123,0.054783,91265.0,91264.0,0.36422692]
[1731835702528,0.10927525,91265.0,91264.0,0.00342692]
[1731835703835,0.05449225,91265.0,91259.0,0.19527166]
[1731835704138,0.054784,91262.0,91260.0,0.00342694]
[1731835704442,0.054784,91262.0,91261.0,0.00342694]
[1731835705355,0.10808556,91262.0,91261.0,0.00342694]
[1731835705537,0.10808624,91262.0,91261.0,0.00342694]
[1731835706039,0.054786,91259.0,91258.0,0.054786]
[1731835706238,0.054786,91259.0,91258.0,0.05821302]
[1731835706239,0.10808824,91259.0,91258.0,0.05821302]
[1731835706926,0.10808824,91259.0,91258.0,0.00342702]
[1731835707340,0.30447366,91259.0,91258.0,0.00342702]
[1731835707534,0.30447366,91259.0,91258.0,0.00342703]
[1731835708540,0.30447366,91259.0,91256.0,0.00010259]
[1731835708541,0.56707724,91259.0,91256.0,0.00010259]
[1731835708837,0.054787,91257.0,91256.0,0.00010259]
[1731835709037,0.10808924,91257.0,91256.0,0.00010259]
[1731835709229,0.56737974,91257.0,91256.0,0.00010259]
[1731835709737,0.56785182,91257.0,91256.0,0.00353043]
[1731835710043,0.68273801,91257.0,91256.0,0.00353043]
[1731835710227,0.56785182,91257.0,91256.0,0.00353043]
[1731835710941,0.56785182,91257.0,91256.0,0.00353024]
[1731835711738,0.89661182,91257.0,91256.0,0.00353024]
[1731835712441,0.797662,91257.0,91256.0,0.00353024]
[1731835713436,0.797662,91257.0,91256.0,0.00010259]
[1731835713938,0.57978208,91257.0,91256.0,0.00353045]
[1731835714439,0.57978208,91257.0,91256.0,0.00353025]
[1731835715042,0.415587,91257.0,91256.0,0.00353025]
[1731835715243,0.46890015,91257.0,91256.0,0.00010259]
[1731835715441,0.415587,91257.0,91256.0,0.00010259]
[1731835715742,0.57974743,91257.0,91256.0,0.00010259]
[1731835716244,0.415587,91257.0,91256.0,0.00353027]
[1731835716742,0.415587,91257.0,91256.0,0.00353032]
[1731835716743,0.57974743,91257.0,91256.0,0.00353032]
[1731835716941,0.415587,91257.0,91256.0,0.00353032]
[1731835719141,0.054794,91245.0,91236.0,0.19527166]
[1731835719447,0.10928625,91245.0,91244.0,0.0089125]
[1731835719643,0.10928625,91245.0,91244.0,0.00342788]
[1731835719644,0.24059072,91245.0,91244.0,0.00342788]
[1731835720357,0.10928625,91245.0,91244.0,0.00342788]
[1731835722552,0.15392205,91245.0,91244.0,0.00342788]
[1731835722849,0.2084143,91245.0,91244.0,0.00342788]
[1731835723347,0.0548,91235.0,91234.0,0.00014164]
[1731835723656,0.10929225,91235.0,91234.0,0.00905463]
[1731835724939,0.10929225,91235.0,91234.0,0.00014164]
[1731835725551,0.1637845,91235.0,91234.0,0.00014164]
[1731835725757,0.05481,91218.0,91217.0,0.0051]
[1731835725951,0.05481,91218.0,91215.0,0.3608]
[1731835725952,0.054812,91216.0,91215.0,0.3608]
[1731835726147,0.054812,91216.0,91215.0,0.36422866]
[1731835726467,0.054812,91216.0,91215.0,0.3608]
[1731835726647,0.054812,91216.0,91206.0,0.36092019]
[1731835726846,0.054817,91207.0,91206.0,0.36092019]
[1731835727041,0.054817,91207.0,91206.0,0.36434908]
[1731835730266,0.00150584,91207.0,91206.0,0.41916708]
[1731835730752,0.00150584,91207.0,91206.0,0.47365933]
[1731835730956,0.00150584,91207.0,91206.0,0.4791452]
[1731835731959,0.05632284,91207.0,91206.0,0.01589244]
[1731835732660,0.00150584,91207.0,91206.0,0.37669244]
[1731835732850,0.00150584,91207.0,91206.0,0.43151044]
[1731835735456,0.00150584,91207.0,91206.0,0.69001444]
[1731835736248,0.054811,91218.0,91206.0,1.01893444]
[1731835736451,0.054811,91218.0,91217.0,0.054811]
[1731835736648,0.054811,91218.0,91217.0,0.07058216]
[1731835737257,0.39326001,91229.0,91221.0,0.054808]
[1731835737551,0.39326001,91229.0,91222.0,0.00891413]
[1731835737552,0.054807,91223.0,91222.0,0.00891413]
[1731835738954,0.054807,91223.0,91222.0,0.00342851]
[1731835739666,0.054807,91223.0,91222.0,0.05823651]
[1731835740053,0.054807,91223.0,91222.0,0.41903651]
[1731835740855,0.054807,91223.0,91222.0,0.415608]
[1731835741669,0.39326001,91229.0,91222.0,0.3608]
[1731835741855,0.3927,91229.0,91226.0,0.054805]
[1731835742056,0.3927,91229.0,91222.0,0.3608]
[1731835742057,0.054807,91223.0,91222.0,0.3608]
[1731835742449,0.054807,91223.0,91222.0,0.415608]
[1731835742848,0.054807,91223.0,91222.0,0.41903646]
[1731835743250,0.054807,91223.0,91222.0,0.00342846]
[1731835743450,0.054815,91211.0,91209.0,0.054816]
[1731835743660,0.054815,91211.0,91210.0,0.00342875]
[1731835743861,0.18596806,91211.0,91210.0,0.00342875]
[1731835744564,0.054815,91211.0,91210.0,0.00342875]
[1731835746468,0.054815,91211.0,91210.0,0.00342899]
[1731835747070,0.054815,91211.0,91210.0,0.0089153]
[1731835747265,0.054815,91211.0,91210.0,0.01577319]
[1731835748474,0.054815,91211.0,91210.0,0.00342894]
[1731835748767,0.054815,91211.0,91210.0,0.01577314]
[1731835749182,0.054815,91211.0,91210.0,0.07058814]
[1731835752669,0.054815,91211.0,91210.0,0.33141528]
[1731835752972,0.054815,91211.0,91210.0,0.07058814]
[1731835754166,0.054815,91211.0,91210.0,0.07058799]
[1731835754568,0.054815,91211.0,91210.0,0.01577299]
[1731835755563,0.054815,91210.0,91208.0,0.32313]
[1731835755768,0.054815,91210.0,91209.0,0.01577296]
[1731835757175,0.054815,91210.0,91209.0,0.07058896]
[1731835757772,0.054815,91210.0,91209.0,0.01577296]
[1731835758685,0.21875486,91210.0,91209.0,0.01577296]
[1731835759175,0.21875486,91210.0,91206.0,0.05493819]
[1731835759376,0.21875486,91210.0,91209.0,0.01577289]
[1731835759580,0.21875486,91210.0,91209.0,0.01028667]
[1731835759882,0.21875486,91210.0,91209.0,0.01577289]
[1731835761185,0.21875486,91210.0,91209.0,0.07058889]
[1731835761381,0.054815,91210.0,91209.0,0.07058889]
[1731835762078,0.21875486,91210.0,91209.0,0.07058889]
[1731835762487,0.054815,91210.0,91209.0,0.07058889]
[1731835762779,0.056321,91210.0,91209.0,0.054816]
[1731835762985,0.056321,91210.0,91209.0,0.07058871]
[1731835763175,0.056321,91210.0,91209.0,0.07341371]
[1731835763480,0.056321,91210.0,91209.0,0.07058871]
[1731835763677,0.056321,91210.0,91209.0,0.07341376]
[1731835764073,0.056321,91210.0,91209.0,0.07341377]
[1731835764382,0.056321,91210.0,91209.0,0.07058871]
[1731835764774,0.056321,91210.0,91209.0,0.07341442]
[1731835764978,0.056321,91210.0,91209.0,0.07547166]
[1731835765178,0.22026086,91210.0,91209.0,0.07058863]
[1731835765381,0.056321,91210.0,91209.0,0.07058863]
[1731835766993,0.056321,91210.0,91209.0,0.06030213]
[1731835767291,0.056321,91210.0,91209.0,0.07058878]
[1731835770389,0.001506,91210.0,91209.0,0.06167373]
[1731835770694,0.001506,91210.0,91209.0,0.06998567]
[1731835771094,0.001506,91210.0,91209.0,0.07341452]
[1731835772083,0.001506,91210.0,91209.0,0.07058871]
[1731835773299,0.001506,91210.0,91209.0,0.06510252]
[1731835773592,0.001506,91210.0,91209.0,0.07058867]
[1731835773788,0.056321,91210.0,91209.0,0.07058867]
[1731835774299,0.18784131,91210.0,91209.0,0.07058867]
[1731835774496,0.056321,91210.0,91209.0,0.07058867]
[1731835774896,0.056321,91210.0,91209.0,0.07341615]
[1731835775395,0.056321,91210.0,91209.0,0.06655847]
[1731835775793,0.18784131,91210.0,91209.0,0.06373099]
[1731835777089,0.18784131,91210.0,91209.0,0.06921714]
[1731835777288,0.18784131,91210.0,91209.0,0.054816]
[1731835777695,0.056321,91210.0,91209.0,0.32475016]
[1731835777897,0.18795089,91210.0,91209.0,0.06373099]
[1731835779208,0.18795089,91210.0,91209.0,0.00891499]
[1731835779497,0.056321,91210.0,91209.0,0.26989382]
[1731835779700,0.056321,91210.0,91209.0,0.00891499]
[1731835780499,0.10965346,91210.0,91209.0,0.00891499]
[1731835781005,0.10965346,91210.0,91206.0,0.05493819]
[1731835781006,0.054816,91209.0,91206.0,0.05493819]
[1731835781299,0.25076446,91208.0,91207.0,0.00342894]
[1731835781492,0.25076446,91208.0,91207.0,0.00891522]
[1731835781900,0.25227046,91208.0,91207.0,0.00891522]
[1731835782797,0.05483846,91208.0,91207.0,0.00891522]
[1731835783198,0.25227046,91208.0,91207.0,0.00891522]
[1731835783900,0.05483846,91208.0,91207.0,0.00891522]
[1731835784402,0.05483846,91208.0,91207.0,0.0117386]
[1731835785004,0.05483846,91208.0,91207.0,0.00891522]
[1731835785401,0.10965546,91208.0,91207.0,0.00891522]
[1731835786292,0.30708746,91208.0,91207.0,0.00891522]
[1731835786697,0.10965559,91208.0,91207.0,0.00891522]
[1731835787401,1.32867149,91208.0,91200.0,0.1]
[1731835787709,0.054826,91192.0,91190.0,0.19583829]
[1731835787900,0.08685503,91191.0,91185.0,0.19583829]
[1731835788209,0.05449225,91186.0,91185.0,0.19580029]
[1731835788409,0.054833,91181.0,91180.0,0.19580029]
[1731835788597,0.054833,91180.0,91179.0,0.00013726]
[1731835788994,0.056339,91180.0,91179.0,0.00013726]
[1731835789195,0.001506,91180.0,91179.0,0.00013726]
[1731835790198,0.001506,91180.0,91179.0,0.05497126]
[1731835791506,0.001506,91180.0,91179.0,0.2503019]
[1731835792515,0.001506,91180.0,91179.0,0.05497126]
[1731835792909,0.001506,91180.0,91179.0,0.08707126]
[1731835794818,0.001506,91180.0,91179.0,1.58707126]
[1731835797407,0.001506,91180.0,91179.0,1.59255906]
[1731835798111,0.001506,91180.0,91179.0,1.7878897]
[1731835798314,0.001506,91180.0,91179.0,1.59255906]
[1731835798817,0.001506,91180.0,91179.0,1.94787126]
[1731835799023,0.001506,91180.0,91179.0,1.95335871]
[1731835799317,0.001506,91180.0,91179.0,1.92125871]
[1731835799509,0.001506,91180.0,91179.0,1.92468838]
[1731835799812,0.00164514,91200.0,91199.0,0.054822]
[1731835800024,0.00164514,91200.0,91199.0,0.47354343]
[1731835800722,0.054826,91194.0,91193.0,0.054825]
[1731835801012,0.054826,91194.0,91193.0,0.00342932]
[1731835802006,0.148722,91199.0,91197.0,0.054823]
[1731835802207,0.085722,91199.0,91198.0,0.3608]
[1731835802717,0.25025969,91199.0,91198.0,0.36422923]
[1731835803519,0.13905901,91199.0,91198.0,0.3608]
[1731835804607,0.13905906,91199.0,91198.0,0.3608]
[1731835805415,0.13905882,91199.0,91198.0,0.3608]
[1731835805810,0.0309,91199.0,91198.0,0.36422927]
[1731835806117,0.00164514,91200.0,91199.0,0.054822]
[1731835806315,0.05498135,91200.0,91199.0,0.05825127]
[1731835806519,0.16564558,91200.0,91199.0,0.05825127]
[1731835806708,0.16564558,91200.0,91199.0,0.06373802]
[1731835807108,0.16564122,91200.0,91199.0,0.06373802]
[1731835807315,0.16564292,91200.0,91199.0,0.06373802]
[1731835807823,0.16564292,91200.0,91199.0,0.06373784]
[1731835808011,0.16564292,91200.0,91199.0,0.054822]
[1731835808318,0.00164514,91200.0,91199.0,0.06373787]
[1731835808918,0.16567514,91200.0,91199.0,0.06373787]
[1731835809310,0.00164514,91200.0,91199.0,0.06373787]
[1731835810616,0.00164514,91200.0,91199.0,0.10856865]
[1731835810923,0.00164514,91200.0,91199.0,0.46936865]
[1731835811113,0.00164514,91200.0,91199.0,0.46045278]
[1731835811311,0.00164514,91200.0,91199.0,0.46936857]
[1731835813820,0.00164514,91200.0,91199.0,0.47622671]
[1731835814319,0.00164514,91200.0,91199.0,0.67121244]
[1731835814519,0.00164514,91200.0,91199.0,0.47622671]
[1731835814717,0.00164514,91200.0,91199.0,0.46936764]
[1731835815019,0.00164514,91200.0,91199.0,0.46388157]
[1731835817020,0.00164514,91200.0,91199.0,0.55144157]
[1731835817326,0.13123218,91213.0,91199.0,0.55144157]
[1731835817327,0.13123218,91214.0,91209.0,0.054816]
[1731835817528,0.054811,91218.0,91213.0,0.05449225]
[1731835817714,0.15766835,91217.0,91213.0,0.05449225]
[1731835817920,0.10433788,91217.0,91216.0,0.054812]
[1731835818115,0.15766021,91217.0,91216.0,0.054812]
[1731835818720,0.05332852,91217.0,91216.0,0.054812]
[1731835818926,0.05332852,91221.0,91212.0,0.054814]
[1731835819125,0.19686857,91216.0,91215.0,0.10930425]
[1731835819727,0.05332852,91216.0,91215.0,0.10930425]
[1731835819933,0.19686857,91216.0,91215.0,0.10930425]
[1731835820227,0.05332852,91216.0,91215.0,0.10930425]
[1731835820417,0.19686857,91216.0,91215.0,0.10930425]
[1731835820620,0.05332852,91216.0,91215.0,0.10930425]
[1731835820826,0.19686857,91217.0,91215.0,0.10930425]
[1731835821528,0.05332852,91216.0,91215.0,0.10930425]
[1731835821821,0.19686857,91219.0,91215.0,0.10930425]
[1731835821822,0.19686857,91219.0,91218.0,0.05481]
[1731835822025,0.05332742,91219.0,91218.0,0.06029583]
[1731835822227,0.05332742,91219.0,91218.0,0.06372447]
[1731835822637,0.05332742,91219.0,91218.0,0.20577672]
[1731835822638,0.16401066,91219.0,91218.0,0.20577672]
[1731835822925,0.00060001,91229.0,91218.0,0.15128447]
[1731835822926,0.16401066,91220.0,91218.0,0.15128447]
[1731835823127,0.16401066,91221.0,91220.0,0.054809]
[1731835823433,0.16401066,91222.0,91220.0,0.11821572]
[1731835823629,0.16401066,91224.0,91222.0,0.054808]
[1731835823825,0.16401066,91225.0,91224.0,0.054807]
[1731835824019,0.054802,91233.0,91224.0,0.42452147]
[1731835824020,0.16401066,91226.0,91224.0,0.42452147]
[1731835824220,0.16401066,91228.0,91226.0,0.054806]
[1731835824533,0.032,91234.0,91233.0,0.054801]
[1731835824729,0.032,91234.0,91233.0,0.11272126]
[1731835825030,0.032,91234.0,91233.0,0.05822901]
[1731835825419,0.00164448,91237.0,91233.0,0.11272126]
[1731835825732,0.00164448,91237.0,91234.0,0.0089127]
[1731835827424,0.00164448,91237.0,91234.0,0.00342801]
[1731835827818,0.00164448,91237.0,91234.0,0.00891259]
[1731835828923,0.00164448,91237.0,91234.0,0.05822901]
[1731835829122,0.00164448,91237.0,91233.0,0.04292359]
[1731835829325,0.00164448,91237.0,91222.0,0.08309315]
[1731835829326,0.05488279,91235.0,91234.0,0.00342785]
[1731835829524,0.054806,91225.0,91224.0,0.054807]
[1731835829726,0.054806,91225.0,91224.0,0.05823528]
[1731835829933,0.13112562,91234.0,91224.0,0.3608]
[1731835830127,0.054803,91230.0,91227.0,0.054805]
[1731835830833,0.0319,91233.0,91231.0,0.054802]
[1731835831131,0.0319,91233.0,91232.0,0.054802]
[1731835832724,0.08521933,91233.0,91232.0,0.415602]
[1731835833333,0.33659589,91233.0,91232.0,0.415602]
[1731835833637,0.33659717,91233.0,91232.0,0.415602]
[1731835833931,0.14002033,91233.0,91232.0,0.415602]
[1731835834526,0.33659449,91233.0,91232.0,0.415602]
[1731835834828,0.14002033,91233.0,91232.0,0.415602]
[1731835835235,0.05331933,91233.0,91232.0,0.415602]
[1731835835532,8.279e-05,91235.0,91234.0,0.054801]
[1731835835833,8.279e-05,91235.0,91234.0,0.05822867]
[1731835836028,8.279e-05,91235.0,91234.0,1.55822867]
[1731835836645,8.279e-05,91235.0,91234.0,1.55822859]
[1731835836827,8.279e-05,91235.0,91234.0,1.56371274]
[1731835837524,8.279e-05,91235.0,91234.0,1.65115274]
[1731835838440,8.279e-05,91235.0,91234.0,1.69445124]
[1731835838626,0.16387768,91235.0,91234.0,1.69445124]
[1731835838936,8.279e-05,91235.0,91234.0,1.69445124]
[1731835839328,8.279e-05,91235.0,91234.0,1.69787927]
[1731835839525,8.279e-05,91235.0,91234.0,1.70130698]
[1731835839721,8.279e-05,91235.0,91234.0,2.03014698]
[1731835839922,0.18581079,91250.0,91234.0,2.03014678]
[1731835840128,0.18581079,91250.0,91249.0,0.054792]
[1731835840341,0.054792,91250.0,91249.0,0.05821971]
[1731835840728,0.18582844,91250.0,91249.0,0.054792]
[1731835840929,0.18592259,91250.0,91249.0,0.054792]
[1731835841231,0.18592259,91250.0,91249.0,0.05821957]
[1731835841933,0.05488615,91250.0,91249.0,0.05821957]
[1731835844527,0.05488615,91250.0,91249.0,0.06370341]
[1731835844724,0.05488615,91250.0,91249.0,0.05821957]
[1731835845029,0.05488615,91250.0,91249.0,0.054792]
[1731835850434,9.415e-05,91250.0,91249.0,0.054792]
[1731835850834,0.13129864,91250.0,91249.0,0.05821927]
[1731835851234,9.415e-05,91250.0,91249.0,0.14561927]
[1731835851650,9.415e-05,91250.0,91249.0,0.142192]
[1731835852039,9.415e-05,91250.0,91249.0,0.15795763]
[1731835853141,0.05488515,91250.0,91249.0,0.15795763]
[1731835853341,0.05488515,91250.0,91249.0,0.01576563]
[1731835853535,0.21868004,91250.0,91249.0,0.09619101]
[1731835854141,0.05488515,91250.0,91249.0,0.09619101]
[1731835854437,0.10819428,91250.0,91249.0,0.00891101]
[1731835854639,0.05488515,91250.0,91249.0,0.00891101]
[1731835854840,0.10819428,91250.0,91249.0,0.00891101]
[1731835855042,0.05488515,91250.0,91249.0,0.00891101]
[1731835855344,0.3389921,91250.0,91249.0,0.00891101]
[1731835856738,0.3389921,91250.0,91249.0,0.00891141]
[1731835857348,0.3389921,91250.0,91249.0,0.00891148]
[1731835859242,0.3389921,91250.0,91249.0,0.00342746]
[1731835859443,0.3389921,91250.0,91249.0,0.00891147]
[1731835859444,0.21499336,91250.0,91249.0,0.00891147]
[1731835860344,0.21499336,91250.0,91249.0,0.00891153]
[1731835860547,0.21499336,91250.0,91246.0,0.04413311]
[1731835860548,0.054793,91247.0,91246.0,0.04413311]
[1731835860742,0.054794,91246.0,91245.0,0.08728]
[1731835861047,0.21490221,91246.0,91245.0,0.09619156]
[1731835862846,0.16264296,91246.0,91245.0,0.00891152]
[1731835863037,0.16264296,91246.0,91245.0,0.00342751]
[1731835865245,0.16264786,91246.0,91245.0,0.00342751]
[1731835866152,0.2696984,91246.0,91245.0,0.00342751]
[1731835866453,0.0548,91235.0,91234.0,0.08728]
[1731835866669,0.10811551,91235.0,91234.0,0.09619289]
[1731835867044,0.10811551,91235.0,91234.0,0.08728]
[1731835868839,0.10811551,91235.0,91234.0,0.13204662]
[1731835869039,0.054801,91233.0,91232.0,8.524e-05]
[1731835869244,0.10811981,91233.0,91232.0,8.524e-05]
[1731835869749,0.340013,91233.0,91232.0,8.524e-05]
[1731835870547,0.21542576,91233.0,91232.0,8.524e-05]
[1731835870851,0.21542576,91233.0,91232.0,2.4e-07]
[1731835870852,0.78482868,91233.0,91232.0,2.4e-07]
[1731835871055,0.78482868,91233.0,91214.0,0.0051]
[1731835871056,0.054812,91215.0,91214.0,0.0051]
[1731835871260,0.054807,91224.0,91207.0,0.3608]
[1731835871261,0.054817,91208.0,91207.0,0.3608]
[1731835871552,0.21544176,91208.0,91207.0,1.8608]
[1731835872055,0.21544176,91208.0,91207.0,0.36088668]
[1731835873349,0.16062476,91208.0,91207.0,0.36088668]
[1731835873556,0.16049379,91208.0,91207.0,0.41570368]
[1731835873739,0.05331881,91208.0,91207.0,0.36088668]
[1731835873943,0.19663718,91208.0,91207.0,0.36088668]
[1731835874171,0.10728151,91212.0,91207.0,0.36088668]
[1731835874172,0.05331881,91211.0,91207.0,0.42461895]
[1731835874448,0.19657456,91209.0,91208.0,0.00342896]
[1731835874656,0.24989337,91209.0,91208.0,0.00342896]
[1731835875454,0.05331881,91209.0,91208.0,0.00342896]
[1731835875843,0.05333239,91209.0,91208.0,0.00342896]
[1731835876753,0.16371237,91209.0,91208.0,0.00891506]
[1731835876951,0.21852737,91210.0,91209.0,0.054816]
[1731835877251,0.21852737,91210.0,91209.0,0.05824496]
[1731835877958,0.054815,91210.0,91209.0,0.00342896]
[1731835880250,0.038875,91210.0,91209.0,0.00342896]
[1731835880859,0.054817,91208.0,91207.0,0.36088668]
[1731835881050,0.054817,91208.0,91207.0,0.36431571]
[1731835881668,0.054817,91208.0,91207.0,8.668e-05]
[1731835882157,0.054817,91208.0,91188.0,1.5]
[1731835882158,0.054823,91197.0,91188.0,1.5]
[1731835882854,0.054823,91197.0,91183.0,0.08732]
[1731835883053,0.054823,91197.0,91188.0,0.00010816]
[1731835884950,0.054823,91197.0,91191.0,0.08310857]
[1731835885152,0.0312,91210.0,91199.0,0.054822]
[1731835885346,0.05482,91202.0,91200.0,0.00342932]
[1731835885648,0.05482,91202.0,91196.0,0.36244448]
[1731835885649,0.054823,91198.0,91196.0,0.36244448]
[1731835885859,0.054823,91198.0,91197.0,0.00342932]
[1731835886754,0.054823,91197.0,91196.0,0.00164448]
[1731835887151,0.054828,91189.0,91182.0,0.054832]
[1731835887561,0.054828,91189.0,91183.0,0.054831]
[1731835889659,0.05496708,91189.0,91180.0,0.04356783]
[1731835891361,0.05496708,91189.0,91177.0,0.054835]
[1731835895157,0.05496708,91189.0,91179.0,0.054834]
[1731835897662,0.05496708,91189.0,91188.0,0.00353807]
[1731835897663,0.18590338,91189.0,91188.0,0.00353807]
[1731835897860,0.05496708,91189.0,91188.0,0.00353807]
[1731835898263,0.05496708,91189.0,91188.0,0.00353818]
[1731835898660,0.21867945,91189.0,91188.0,0.00353818]
[1731835898863,0.54785608,91189.0,91188.0,0.00353818]
[1731835899064,0.054834,91179.0,91168.0,0.3608]
[1731835899254,0.054834,91179.0,91178.0,0.36628827]
[1731835899454,0.086934,91179.0,91178.0,0.36628827]
[1731835900658,0.071444,91179.0,91178.0,0.36628827]
[1731835901160,0.432244,91179.0,91178.0,0.00548827]
[1731835901362,0.432244,91179.0,91171.0,9.386e-05]
[1731835901570,0.054838,91172.0,91171.0,9.386e-05]
[1731835901869,0.054838,91172.0,91171.0,0.00558234]
[1731835902567,0.086938,91172.0,91171.0,9.386e-05]
[1731835904069,0.13068393,91172.0,91171.0,9.386e-05]
[1731835907960,0.18404423,91172.0,91171.0,9.386e-05]
[1731835909068,0.15194423,91172.0,91171.0,9.386e-05]
[1731835909461,0.15194273,91172.0,91171.0,9.386e-05]
[1731835911684,0.2350513,91172.0,91171.0,9.386e-05]
[1731835912556,0.2350513,91172.0,91171.0,0.00352456]
[1731835912762,0.2350513,91172.0,91171.0,9.386e-05]
[1731835913367,0.2350513,91172.0,91171.0,0.00352459]
[1731835913968,0.43162586,91172.0,91171.0,9.386e-05]
[1731835914176,0.2350513,91172.0,91171.0,9.386e-05]
[1731835915064,0.1816925,91172.0,91171.0,9.386e-05]
[1731835915562,0.34575446,91172.0,91171.0,9.386e-05]
[1731835915963,0.1816925,91172.0,91171.0,9.386e-05]
[1731835916761,0.34575446,91172.0,91171.0,9.386e-05]
[1731835917862,0.5107325,91172.0,91171.0,9.386e-05]
[1731835918070,0.67485285,91172.0,91171.0,9.386e-05]
[1731835918267,0.5107325,91172.0,91171.0,9.386e-05]
[1731835918475,0.67486082,91172.0,91171.0,9.386e-05]
[1731835918867,0.5107325,91172.0,91171.0,9.386e-05]
[1731835919376,0.56409435,91172.0,91171.0,9.386e-05]
[1731835920875,0.054847,91157.0,91156.0,0.0312]
[1731835922266,0.10821138,91157.0,91156.0,0.0312]
[1731835922467,0.30508573,91157.0,91156.0,0.0312]
[1731835922668,0.10821138,91157.0,91156.0,0.0312]
[1731835923365,0.30508573,91157.0,91156.0,0.0312]
[1731835923775,0.3333473,91157.0,91154.0,0.00011265]
[1731835923973,0.054848,91155.0,91154.0,0.00011265]
[1731835924270,0.10821238,91155.0,91154.0,0.00011265]
[1731835925569,0.054848,91155.0,91154.0,0.00011265]
[1731835926068,0.21870332,91155.0,91154.0,0.00011265]
[1731835926689,0.21870332,91155.0,91154.0,0.00354384]
[1731835926870,0.21870332,91155.0,91154.0,0.00011265]
[1731835927071,0.10821405,91155.0,91154.0,0.00354376]
[1731835927474,0.054848,91155.0,91154.0,0.00354376]
[1731835927773,0.21877948,91155.0,91154.0,0.00903362]
[1731835929490,0.21877948,91155.0,91154.0,0.00354376]
[1731835930072,0.10821405,91155.0,91154.0,0.00354376]
[1731835930267,0.10821405,91155.0,91154.0,0.00354393]
[1731835930682,0.10821405,91155.0,91154.0,0.00011265]
[1731835930983,0.10821405,91155.0,91154.0,0.00354393]
[1731835931779,0.10821656,91155.0,91154.0,0.00354393]
[1731835932280,0.10821656,91155.0,91154.0,0.00011265]
[1731835932878,0.21752602,91155.0,91154.0,0.00011265]
[1731835933069,0.16287129,91155.0,91154.0,0.00011265]
[1731835934680,0.24999129,91155.0,91154.0,0.00011265]
[1731835934880,0.2786181,91155.0,91154.0,0.00011265]
[1731835935480,0.4757859,91155.0,91154.0,0.00011265]
[1731835936180,0.2786181,91155.0,91154.0,0.00011265]
[1731835936386,0.4757859,91155.0,91154.0,0.00011265]
[1731835936583,0.27862254,91155.0,91154.0,0.00011265]
[1731835938183,0.22524954,91155.0,91154.0,0.00011265]
[1731835938485,0.27862182,91155.0,91154.0,0.00011265]
[1731835940400,0.054859,91137.0,91136.0,0.0323]
[1731835940786,0.054859,91137.0,91136.0,0.03573176]
[1731835941395,0.054864,91130.0,91125.0,0.054866]
[1731835941585,0.3608,91126.0,91125.0,0.054866]
[1731835941790,0.3608,91126.0,91125.0,0.05494328]
[1731835944691,0.3608,91126.0,91125.0,0.08594328]
[1731835944996,0.415666,91126.0,91125.0,0.03107728]
[1731835947892,0.054866,91126.0,91125.0,0.03107728]
[1731835948096,0.415666,91126.0,91125.0,0.03107728]
[1731835948293,0.46914388,91126.0,91125.0,7.728e-05]
[1731835948493,0.4157626,91126.0,91125.0,7.728e-05]
[1731835948697,0.46914371,91126.0,91125.0,7.728e-05]
[1731835949897,0.46914371,91126.0,91125.0,0.00556861]
[1731835950095,0.4157626,91126.0,91125.0,0.00556861]
[1731835951499,0.57994263,91126.0,91125.0,7.728e-05]
[1731835951698,0.46914335,91126.0,91125.0,0.00556859]
[1731835951893,0.46914335,91126.0,91125.0,7.728e-05]
[1731835952206,0.4157626,91126.0,91125.0,7.728e-05]
[1731835953399,0.4157626,91126.0,91125.0,0.00350939]
[1731835954489,0.4157626,91126.0,91125.0,7.728e-05]
[1731835954793,0.4157626,91126.0,91125.0,0.00350941]
[1731835956693,0.4157626,91126.0,91125.0,7.728e-05]
[1731835957094,0.3608966,91126.0,91125.0,0.05494328]
[1731835959096,0.4157626,91126.0,91125.0,0.05494328]
[1731835960202,0.66627355,91126.0,91125.0,0.05494328]
[1731835960598,0.46914213,91126.0,91125.0,0.05494328]
[1731835961501,0.41427613,91126.0,91125.0,0.05837525]
[1731835961895,0.41427613,91126.0,91125.0,0.05494328]
[1731835962209,0.41427613,91126.0,91125.0,0.05837522]
[1731835962694,0.41427613,91126.0,91125.0,0.06180715]
[1731835963804,0.46914213,91126.0,91125.0,0.06180715]
[1731835964011,0.41427613,91126.0,91125.0,0.06180715]
[1731835964897,0.41427613,91126.0,91125.0,0.06729815]
[1731835965507,0.41427613,91126.0,91125.0,0.05837522]
[1731835965508,0.4142743,91126.0,91125.0,0.05837522]
[1731835965704,0.4142743,91126.0,91125.0,0.06729809]
[1731835966409,0.4142743,91126.0,91125.0,0.0672981]
[1731835966712,0.4142743,91126.0,91125.0,0.06386616]
[1731835967305,0.3608966,91126.0,91125.0,0.06386616]